Cogmind - Beta 14 --- EXPLORER MODE // 2024.09.25 @ 15:10:43 Player: Wisdomtree Result: Self-destructed Performance ------------- Evolutions (1) 500 Regions Visited (5) 1000 Robots Destroyed (52) 260 Value Destroyed (1222) 1222 Prototype IDs (31) 620 Alien Tech Used (0) 0 Bonus (185) 185 TOTAL SCORE: 3787 Bonus ------- Follower Combat Kills 303 Friendly Fire -118 Cogmind --------- Core Integrity 227/400 Matter 300/300 Energy 280/280 System Corruption 0% Temperature Cool (0) Movement Treading (400) Ox3 Location -9/Exiles Parts ------- > --- POWER (1) -------- Heavy Ion Engine > --- PROPULSION (2) --- Light Treads Light Treads > --- UTILITY (5) ------ Huge Storage Unit Heavy Armor Plating Hardened Medium Armor Plating Hardened Medium Armor Plating > --- WEAPON (2) ------- EM Pulse Gun Light Assault Rifle > --- INVENTORY (25) --- Light Ion Engine Improved Ion Engine Light Treads Light Treads Light Treads Light Treads Potential Leg Improved Flight Unit Improved Flight Unit Improved Heat Sink Small Storage Unit Structural Scanner Experimental Sensor Array Signal Interpreter Terrain Scanner Terrain Scan Processor ECM Suite ECM Suite ECM Suite Hardened Medium Armor Plating Beam Cannon Beam Cannon Grenade Launcher Grenade Launcher Hammer Peak State ------------ > --- POWER ------------ Light Nuclear Core > --- PROPULSION ------- Light Treads Light Treads > --- UTILITY ---------- Huge Storage Unit Experimental Sensor Array Power Shielding Heavy Armor Plating > --- WEAPON ----------- Medium Laser Beam Cannon > --- INVENTORY -------- Light Ion Engine Light Ion Engine Light Treads Light Treads Light Treads Improved Heat Sink Small Storage Unit Signal Interpreter Terrain Scanner ECM Suite EM Pulse Gun Beam Cannon Beam Cannon Light Assault Rifle Grenade Launcher Grenade Launcher Grenade Launcher Hammer [Rating: 26] Favorites ----------- Power Light Nuclear Core Engine Heavy Ion Engine Power Core Light Nuclear Core Propulsion Light Treads Treads Light Treads Utility Huge Storage Unit Device Experimental Sensor Array Storage Huge Storage Unit Processor Signal Interpreter Protection Hardened Medium Armor Plating Weapon Beam Cannon Energy Gun Medium Laser Energy Cannon Beam Cannon Ballistic Gun Light Assault Rifle Build | -11 -10 -10 -9 -9 -9 ------- Run | Yrd Mat Min Mat Min Exi Slots Evolved 3 | . 1 . 2 . . Power . | . . . . . . Propulsion . | . . . . . . Utility 3 | . 1 . 2 . . Weapon . | . . . . . . Parts Attached 33 | 7 12 1 11 2 . Power 5 | 1 2 . 2 . . Engine 4 | 1 1 . 2 . . Core 1 | . 1 . . . . Reactor . | . . . . . . Propulsion 10 | 2 5 . 2 1 . Treads 10 | 2 5 . 2 1 . Leg . | . . . . . . Wheel . | . . . . . . Hover . | . . . . . . Flight . | . . . . . . Utility 9 | 2 2 1 4 . . Device 1 | . . 1 . . . Storage 2 | 1 1 . . . . Processor 1 | 1 . . . . . Hackware . | . . . . . . Protection 5 | . 1 . 4 . . Artifact . | . . . . . . Weapon 9 | 2 3 . 3 1 . Energy Gun 5 | 2 2 . . 1 . Energy Cannon 3 | . 1 . 2 . . Ballistic Gun 1 | . . . 1 . . Ballistic Cannon . | . . . . . . Launcher . | . . . . . . Special Weapon . | . . . . . . Impact Weapon . | . . . . . . Slashing Weapon . | . . . . . . Piercing Weapon . | . . . . . . Special Melee Weapon . | . . . . . . Unidentified Prototypes 2 | . . 1 1 . . Parts Lost 2 | . . . 2 . . Power 1 | . . . 1 . . Propulsion . | . . . . . . Utility . | . . . . . . Weapon 1 | . . . 1 . . Highest Loss Streak 2 | . . . 2 . . To Critical Strikes . | . . . . . . Average Slot Usage (%) 90 | . 85 96 89 90 90 Engine 6 | . 5 . 8 10 10 Core 4 | . 6 12 1 . . Treads 22 | . 24 25 19 20 20 Device 3 | . . 8 4 . . Storage 10 | . 12 12 10 10 10 Protection 19 | . 9 12 24 30 30 Energy Gun 7 | . 14 12 1 1 10 Energy Cannon 9 | . 9 12 9 8 . Ballistic Gun 4 | . . . 8 10 10 Peak Build Rating 26 | 7 10 19 26 24 25 Average Rating 18 | 5 8 16 23 23 24 On Entrance 14 | . 7 10 19 24 24 Naked Turns . | . . . . . . Heaviest Build 123 | 17 91 92 123 123 122 Greatest Support 40 | 40 40 40 40 40 40 Greatest Overweight (x) 34 | 3 5 2 34 6 3 Average Overweight (x) 2 | . 1 2 2 3 3 Largest Inventory Capacity 25 | 10 25 25 25 25 25 Average Capacity 24 | 9 22 25 25 25 25 Most Carried 25 | 1 17 17 25 25 25 Average Carried 18 | . 10 17 22 24 24 Final Capacity 25 | 10 25 25 25 25 25 Final Carried 25 | 1 17 17 25 24 25 Class Distribution -------------------- 100% | Hacker-Mutant Dominant Class ---------------- Hacker-Mutant | -10/Materials Hacker-Mutant | -10/Mines Hacker-Mutant | -9/Materials Hacker-Mutant | -9/Mines Hacker-Mutant | -9/Exiles Resources | -11 -10 -10 -9 -9 -9 ----------- Run | Yrd Mat Min Mat Min Exi Matter Collected 753 | 196 194 10 322 31 . Remotely . | . . . . . . Salvage Created 1957 | . 537 93 1205 122 . Parts 118 | . 30 3 78 7 . Haulers Intercepted 7 | . 2 . 5 . . Recyclers Shooed 2 | . 1 . 1 . . Parts Field Recycled . | . . . . . . Retrieved Matter . | . . . . . . Parts Self-Destructed . | . . . . . . Prevented . | . . . . . . Kills | -11 -10 -10 -9 -9 -9 ------- Run | Yrd Mat Min Mat Min Exi Combat Hostiles Destroyed 32 | . 9 2 17 4 . Guns 14 | . 4 . 8 2 . Cannons 14 | . 4 2 7 1 . AOE 1 | . . . . 1 . Classes Destroyed 9 | . 5 . 4 . . Worker 1 | . 1 . . . . Builder 2 | . . . 2 . . Hauler 7 | . 2 . 5 . . Recycler 1 | . . . 1 . . Watcher 8 | . 3 . 5 . . Swarmer 8 | . 2 . 4 2 . Grunt 16 | . 7 2 5 2 . Brawler 1 | . . . 1 . . Sentry 7 | . . . 7 . . Thug 1 | . . . 1 . . Best Kill Streak 4 | . 3 2 4 2 . Combat Bots Only 2 | . 2 2 2 2 . Max Kills in Single Turn 2 | . 2 1 2 1 . Gunslinging . | . . . . . . Exploded 1 | . . . . 1 . Melee . | . . . . . . Uniques/NPCs Destroyed . | . . . . . . Combat | -11 -10 -10 -9 -9 -9 -------- Run | Yrd Mat Min Mat Min Exi Hostile Shots Fired 171 | . 42 16 89 24 . Missed 54 | . 13 2 34 5 . Damage Taken 1054 | . 255 113 562 124 . Core 218 | . 34 11 173 . . Absorbed by Shields . | . . . . . . Redirected to Shielding 18 | . 5 9 4 . . Ignored by Resistances 611 | . 162 71 297 81 . Regen/Repaired (Parts) 283 | . . . 283 . . Core Remaining (%) 91 | 100 . 82 . . . Volleys Fired 112 | . 27 7 67 11 . Largest 2 | . 2 2 2 2 . Hottest 110 | . 110 110 110 80 . Shots Fired 208 | . 54 14 121 19 . Gun 113 | . 36 7 57 13 . Cannon 95 | . 18 7 64 6 . Launcher . | . . . . . . Special . | . . . . . . Kinetic 64 | . . . 53 11 . Thermal 133 | . 45 14 68 6 . Explosive . | . . . . . . Electromagnetic 11 | . 9 . . 2 . Robot Hit Streak 46 | . 14 10 46 8 . Robot Miss Streak 3 | . 1 1 3 3 . Penetration Max . | . . . . . . Secondary Targets 1 | . . . . 1 . Max Gunslinging Chain 1 | . . . . 1 . Shots Hit Robots 170 | . 42 12 103 13 . Core Hits 78 | . 23 3 45 7 . Critical Kills 1 | . . . 1 . . Critical Parts Destroyed 1 | . . . . 1 . Critical Strikes 6 | . 4 . 1 1 . Burn 4 | . 4 . . . . Meltdown 1 | . . . 1 . . Destroy 1 | . . . . 1 . Melee Attacks . | . . . . . . Impact . | . . . . . . Slashing . | . . . . . . Piercing . | . . . . . . Sneak Attacks . | . . . . . . Combat Hostiles . | . . . . . . Follow-up Attacks . | . . . . . . Damage Inflicted 2567 | . 656 236 1502 173 . Guns 941 | . 384 93 394 70 . Cannons 1455 | . 213 91 1077 74 . Explosions 88 | . 59 . . 29 . Melee . | . . . . . . Ramming 83 | . . 52 31 . . Kinetic 393 | . . . 343 50 . Thermal 1963 | . 548 184 1128 103 . Explosive . | . . . . . . Electromagnetic 128 | . 108 . . 20 . Impact . | . . . . . . Slashing . | . . . . . . Piercing . | . . . . . . Highest Corruption . | . . . . . . Average Corruption . | . . . . . . Corruption Purged . | . . . . . . Corruption Blocked . | . . . . . . Overload Shots . | . . . . . . Overflow Damage 34 | . 20 . 14 . . Projectiles 15 | . 1 . 14 . . Explosions 19 | . 19 . . . . Melee . | . . . . . . Knockbacks . | . . . . . . Impact . | . . . . . . Kinetic . | . . . . . . Secondary . | . . . . . . Self-Inflicted Damage 8 | . . . . 8 . Shots 1 | . . . . 1 . Rammed 7 | . . 5 2 . . Targets Rammed 8 | . . 5 3 . . Kicked . | . . . . . . Crushed 1 | . . . 1 . . Highest Temperature 564 | . 261 435 564 441 . Average Temperature 154 | . 93 221 158 193 . Received Heat Transfer 666 | . 228 102 273 63 . Effects 25 | . 1 1 15 8 . Shutdowns 7 | . . 1 5 1 . Energy Bleed 5 | . 1 . 1 3 . Interference 6 | . . . 4 2 . Matter Decay 4 | . . . 4 . . Short Circuit 1 | . . . . 1 . Damage (major) 1 | . . . . 1 . Damage (core) 1 | . . . 1 . . Siege Activations . | . . . . . . Robots Corrupted . | . . . . . . Combat Hostiles . | . . . . . . Parts Fried . | . . . . . . Impact Corruptions . | . . . . . . Robots Melted 3 | . 1 . 2 . . Combat Hostiles 3 | . 1 . 2 . . Parts Melted 14 | . 2 2 10 . . Heat Transferred 4601 | . 1604 444 2405 148 . Parts Sabotaged . | . . . . . . Parts Stolen . | . . . . . . Parts Stripped . | . . . . . . Power Chain Reactions 2 | . 1 . . 1 . Alert | -11 -10 -10 -9 -9 -9 ------- Run | Yrd Mat Min Mat Min Exi Peak Influence 224 | . 88 53 224 70 . Initial 1 | . . 1 . . . Average 28 | . 31 17 37 7 . Maximum Alert Level 1 | . . . 1 . . Low Security (%) 99 | 100 100 100 98 100 . Level 1 . | . . . 1 . . Level 2 . | . . . . . . Level 3 . | . . . . . . Level 4 . | . . . . . . Level 5 . | . . . . . . High Security . | . . . . . . Max Security . | . . . . . . Squads Dispatched . | . . . . . . Investigation . | . . . . . . Extermination . | . . . . . . Reinforcement . | . . . . . . Assault . | . . . . . . Garrison . | . . . . . . Intercept . | . . . . . . Searches Triggered . | . . . . . . Construction Impeded . | . . . . . . Haulers Reinforced . | . . . . . . Active Scanning Responses . | . . . . . . Cargo Convoy Interrupts . | . . . . . . Stealth | -11 -10 -10 -9 -9 -9 --------- Run | Yrd Mat Min Mat Min Exi Distress Signals 5 | . . . 5 . . Communications Jammed . | . . . . . . Distress Signals . | . . . . . . Times Spotted 50 | . 13 5 28 4 . Peak Tracking Total 3 | . 3 2 3 2 . Tactical Retreats . | . . . . . . Traps | -11 -10 -10 -9 -9 -9 ------- Run | Yrd Mat Min Mat Min Exi Traps Triggered 6 | . 5 . 1 . . Indirectly . | . . . . . . Trap Hack Attempts . | . . . . . . Triggered . | . . . . . . Disarmed . | . . . . . . Reprogrammed 2 | . 2 . . . . Reused . | . . . . . . Traps Extracted . | . . . . . . Installed . | . . . . . . Triggered . | . . . . . . Machines | -11 -10 -10 -9 -9 -9 ---------- Run | Yrd Mat Min Mat Min Exi Machines Disabled 1 | . 1 . . . . Max in Single Turn 1 | . 1 . . . . Machines Repaired . | . . . . . . Machines Dismantled . | . . . . . . Machines Sabotaged . | . . . . . . Overloaded Fab Kills . | . . . . . . Hacking | -11 -10 -10 -9 -9 -9 --------- Run | Yrd Mat Min Mat Min Exi Machines Accessed 19 | . 7 . 11 . 1 Terminals 15 | . 7 . 8 . . Fabricators . | . . . . . . Repair Stations 2 | . . . 2 . . Recycling Units 1 | . . . 1 . . Scanalyzers . | . . . . . . Garrison Access . | . . . . . . Total Hacks 47 | . 18 . 28 . 1 Successful 32 | . 12 . 19 . 1 Failed 15 | . 6 . 9 . . Catastrophic 3 | . 1 . 2 . . Database Lockouts . | . . . . . . Manual 32 | . 12 . 19 . 1 Terminals 40 | . 18 . 22 . . Fabricators . | . . . . . . Repair Stations 4 | . . . 4 . . Recycling Units 2 | . . . 2 . . Scanalyzers . | . . . . . . Garrison Access . | . . . . . . Terminal Hacks 26 | . 12 . 13 . 1 Record 1 | . . . 1 . . Robot Analysis 5 | . 3 . 2 . . Prototype ID Bank 3 | . 1 . 2 . . Level Access Points 1 | . . . 1 . . Branch Access Points 1 | . . . 1 . . Emergency Access Points 1 | . 1 . . . . Unreport Threat 1 | . 1 . . . . Locate Traps 3 | . . . 3 . . Reprogram Traps 1 | . 1 . . . . Dispatch Records 2 | . 1 . 1 . . Maintenance Status 1 | . 1 . . . . Transport Status 1 | . 1 . . . . Recall Investigation 1 | . 1 . . . . Hauler Manifests 1 | . . . 1 . . Zone Layout 2 | . 1 . 1 . . Derelict Proto ID Bank 1 | . . . . . 1 Fabricator Hacks . | . . . . . . Repair Station Hacks 4 | . . . 4 . . Scan Component 2 | . . . 2 . . Repair 2 | . . . 2 . . Recycling Unit Hacks 2 | . . . 2 . . Report Inventory 1 | . . . 1 . . Retrieve Components 1 | . . . 1 . . Scanalyzer . | . . . . . . Garrison Access Hacks . | . . . . . . Unauthorized Hacks . | . . . . . . Terminals . | . . . . . . Fabricators . | . . . . . . Repair Stations . | . . . . . . Recycling Units . | . . . . . . Scanalyzers . | . . . . . . Garrison Access . | . . . . . . Data Cores Recovered . | . . . . . . Used . | . . . . . . Hacking Detections 16 | . 7 . 9 . . Full Trace Events . | . . . . . . Feedback Events . | . . . . . . Feedback Blocked . | . . . . . . Robot Schematics Acquired . | . . . . . . Robots Built . | . . . . . . Authchips . | . . . . . . Time . | . . . . . . Total Robot Build Rating . | . . . . . . Part Schematics Acquired . | . . . . . . Parts Built . | . . . . . . Authchips . | . . . . . . Time . | . . . . . . Total Part Build Rating . | . . . . . . Parts Repaired 2 | . . . 2 . . Time 146 | . . . 146 . . Parts Recycled . | . . . . . . Recycled Matter . | . . . . . . Retrieved Matter . | . . . . . . Retrieved Components 1 | . . . 1 . . Parts Scanalyzed . | . . . . . . Part Schematics Acquired . | . . . . . . Parts Damaged . | . . . . . . Bothacking | -11 -10 -10 -9 -9 -9 ------------ Run | Yrd Mat Min Mat Min Exi Used RIF Installer . | . . . . . . Robots Hacked . | . . . . . . Non-combat . | . . . . . . Combat . | . . . . . . Robot Hacks Applied . | . . . . . . Relay Couplers Released . | . . . . . . Fabnet Peak Effective % . | . . . . . . Robots Rewired . | . . . . . . Allies Hacked . | . . . . . . Hacks Repelled . | . . . . . . Allies | -11 -10 -10 -9 -9 -9 -------- Run | Yrd Mat Min Mat Min Exi Total Allies 5 | . . 5 . . . Largest Group 5 | . . 5 3 . . Highest-Rated Group 85 | . . 85 61 . . Highest-Rated Ally 31 | . . 31 31 . . Total Orders . | . . . . . . Ally Attacks 72 | . . 15 57 . . Total Damage 856 | . . 138 718 . . Kills 11 | . . 3 8 . . Allies Corrupted . | . . . . . . Allies Melted . | . . . . . . Intel | -11 -10 -10 -9 -9 -9 ------- Run | Yrd Mat Min Mat Min Exi Robot Analysis Total 5 | . 3 . 2 . . Derelict Logs Recovered 1 | . . 1 . . . Drone Launches . | . . . . . . Drone Recoveries . | . . . . . . Exploration | -11 -10 -10 -9 -9 -9 ------------- Run | Yrd Mat Min Mat Min Exi Turns Passed 9480 | 78 2127 1925 3914 891 545 Spaces Moved 2685 | 45 706 585 1000 213 136 Core 15 | 8 6 . 1 . . Treads 2670 | 37 700 585 999 213 136 Legs . | . . . . . . Wheels . | . . . . . . Hover . | . . . . . . Flight . | . . . . . . Fastest Speed 50 | 50 160 320 320 400 400 Average Speed 329 | 150 283 320 349 405 400 Slowest Speed 1750 | 200 480 320 1750 640 400 Overloaded Moves . | . . . . . . Propulsion Burnouts . | . . . . . . Robots Hopped . | . . . . . . Cave-ins Triggered . | . . . . . . Exploration Rate (%) 63 | 5 96 99 86 51 42 Regions Visited 5 Branch Regions 3 Pre-discovered Areas 1 | . . 1 . . . Known Exits Taken 5 | 1 1 1 1 1 . Unknown Exits Taken . | . . . . . . Scrap Searched 1 | . . 1 . . . Spaces Dug . | . . . . . . Terrain Destroyed 8 | . 5 . . 3 . Melee . | . . . . . . Projectile . | . . . . . . AOE 8 | . 5 . . 3 . Terrain Rammed . | . . . . . . Walls Destroyed . | . . . . . . Machines Disabled . | . . . . . . Actions | -11 -10 -10 -9 -9 -9 --------- Run | Yrd Mat Min Mat Min Exi Total 3112 | 52 774 614 1309 226 137 Wait 232 | . 12 17 203 . . Move 2680 | 44 705 584 999 212 136 Hop . | . . . . . . Pick Up 30 | 1 14 . 14 . 1 Fast Attach 26 | 7 10 1 8 . . Attach 5 | . 1 . 3 1 . Detach 7 | . 3 . 4 . . Swap 2 | . 1 . . 1 . Drop 10 | . 1 . 8 1 . Fire 112 | . 27 7 67 11 . Melee . | . . . . . . Ram . | . . . . . . Kick . | . . . . . . Crush 8 | . . 5 3 . . Escape Stasis . | . . . . . . Rewire . | . . . . . . Trap . | . . . . . . Miscellaneous . | . . . . . . Route ------- -11/Scrapyard -10/Materials (discovered 4 exits: *Mat x3 / *Min) -10/Mines (discovered 2 exits: *Mat x2) -9/Materials (discovered 6 exits: *Mat x3 / *Min / *Sto x2) -9/Mines (discovered 2 exits: *Exi / [*Zio]) -9/Exiles History --------- Turn | Location | Event 21 | -11/Scrapyard | Identified exit to Materials 21 | -11/Scrapyard | Discovered exit to Materials (range 15) 79 | -11/Scrapyard | Entered Materials 79 | -10/Materials | Evolved 1 slot: Utility x1 308 | -10/Materials | Build established: Hacker-Mutant 888 | -10/Materials | Identified exit to Materials 888 | -10/Materials | Discovered exit to Materials (range 4) 1373 | -10/Materials | Identified exit to Mines 1373 | -10/Materials | Discovered exit to Mines (range 6) 1475 | -10/Materials | Discovered exit to Materials (range 15) 1852 | -10/Materials | Discovered exit to Materials (range 3) 2206 | -10/Materials | Entered Mines 2278 | -10/Mines | Met a Derelict bent on vengeance 2695 | -10/Mines | Found a damaged Exp. Sensor Array with a note attached 2701 | -10/Mines | Found Prototype Device 2701 | -10/Mines | Identified Exp. Sensor Array 2907 | -10/Mines | Discovered exit to Materials (range 6) 3231 | -10/Mines | Assisted by bots powering up and referring to "LRC-V3" 3234 | -10/Mines | Learned location of Zion (-7) 3288 | -10/Mines | Discovered exit to Materials (range 9) 4131 | -10/Mines | Entered Materials 4131 | -9/Materials | Accompanied by 3 allies 4131 | -9/Materials | Evolved 2 slots: Utility x2 4136 | -9/Materials | Led the pair of lost Derelicts to an unsafe place 4724 | -9/Materials | Identified exit to Materials 4724 | -9/Materials | Discovered exit to Materials (range 9) 4927 | -9/Materials | Identified exit to Storage 4927 | -9/Materials | Discovered exit to Storage (range 11) 5079 | -9/Materials | Discovered exit to Storage (range 6) 5319 | -9/Materials | Discovered exit to Materials (range 16) 5743 | -9/Materials | Discovered exit to Materials (range 9) 6300 | -9/Materials | Identified exit to Mines 6300 | -9/Materials | Discovered exit to Mines (range 16) 6762 | -9/Materials | Repaired Hvy. Armor Plating 7370 | -9/Materials | Repaired Exp. Sensor Array 8045 | -9/Materials | Entered Mines 8306 | -9/Mines | A Derelict revealed a hidden shortcut to a safe place 8920 | -9/Mines | Deemed a non-threat by the Exiles lab entrance 8920 | -9/Mines | Identified exit to Exiles 8920 | -9/Mines | Discovered exit to Exiles (range 5) 8936 | -9/Mines | Entered Exiles 8936 | -9/Exiles | Found Exiles lab destroyed 9464 | -9/Exiles | Opened EX-Vault 9480 | -9/Exiles | Found Potential Leg 9481 | -9/Exiles | Self-destructed Last Messages --------------- 0b10 Alert Chip Cloak of Protection Skeleton Box Trap Reconfigurator Supersonic Drone Bay Army-in-a-Box PSU Rigger Chronowheel AWS/Thermal Latent Energy Streamer Gui. Plasma Cannon Firepult YOLO Cannon AWS/Gauss XL Autogun Array AWS/Autocannon Field Lobotomy Kit Longsword +1 Deploy-a-Sentry 09480_ Acquired Potential Leg. Map ----- +----------------------------------------------------+ | | | | | | | | | | | | | | | | | | | | | | | | | | | | | | | | | | | | | | | | | | | | | ????????????????????####?####????????????????????? | | ????????????????????# # #????????????????????? | | ????????????????????# X= #????????????????????? | | ????????????????????# @ #????????????????????? | | ????????????????????# #????????????????????? | | ????????????????????## ##????????????????????? | | ????????????????????#X a #?????????????????????? | | ????????????????????##a a #?????????????????????? | | ?????????????????????# #?????????????????????? | | ?????????????????????#a #???###???????????????? | | ?????????????????????# #??"""""??????????????? | | ?????????????????????# ## """??????????????? | | ?????????????????????# X""??????????????? | | ?????????????????????# ## """??????????????? | | ??????????????#####??# #??"""""??????????????? | | ??????????????""""""?# #???###???????????????? | | ??????????????""" ## #?????????????????????? | | ?????????????#""X #?????????????????????? | | ?????????????#" #?????????????????????? | | ?????????????#" ## #?????????????????????? | | ?????????????#" ?# #?#########???????????? | | ???????????? ###??# #?#"""""""#???????????? | | ??????????? ??????# #?#"""""""#???????????? | | ??????????? ????????# ###" """#???????????? | | ????????????????????## ## ""#???????????? | | ????????????????????#" ""#???????????? | | ????????????????????#" "#???????????? | | ????????????????????#" "#???????????? | +----------------------------------------------------+ Best States ------------- Heat Dissipation 28 Energy Generation 14 Energy Capacity 280 Matter Stores 300 Matter Capacity 300 Sight Range 16 Robot Scan Range 20 Terrain Scan Density 10 Armor Coverage 1050 Resistance: KI 35 Resistance: TH 35 Resistance: EX 35 Resistance: EM 35 Resistance: I 35 Resistance: S 35 Resistance: P 35 Power Shielding 33 Evasion (%) 40 Recoil Reduction 2 Offensive Hacking 20 Item Schematics ----------------- None Robot Schematics ------------------ None Fabricated ------------ Nothing Alien Tech Used ----------------- None Achievements -------------- None Challenges ------------ None Game ------ Seed MicroKineticBroadsword Manual? 0 Play Time 00:44:42 Cumulative 36.2 hours Start 2024.09.25 @ 00:06:34 End 2024.09.25 @ 15:10:43 Sessions 3 Manual Loads 0 Difficulty Explorer Special Mode None Game No. 16 Rogue 1 Adventurer 3 Explorer 12 Win Type - Total 0 Types 0/0/0/0/0/0/0/0/0 Lore% 16 Gallery% 22 Achievement% 23 Wizard Run 0 Options --------- Layout 1 ASCII 0 Keyboard 1 Movement Numpad Keybinds 0 Fullscreen 1 Font 32/SmallcapsGlow Map View 50x40 Zoom Use 0% Tactical HUD 1 Map Filters NONE Filters NONE Steam 1 RUN: 089dda7b-a5b6-49a5-b1d0-9e8d03818ef3